fUST/lending_fUST_20240911
["ID","MTS","AMOUNT","RATE_DAILY","PERIOD"]
[337720843,1725987104362,-38864.62,0.00020822,2]
[337720844,1725987104371,-2013.95,0.00020822,2]
[337720845,1725987104380,-2044.37,0.00020822,2]
[337720846,1725987104390,-53987.64,0.00020822,2]
[337720847,1725987104399,-500.0,0.00020822,2]
[337720848,1725987104408,-4713.36,0.00020822,2]
[337720849,1725987104419,-535.49,0.00020822,2]
[337720850,1725987104429,-500.0,0.00020822,2]
[337720851,1725987104440,-965.38,0.00020822,2]
[337720852,1725987104452,-806.04,0.00020822,2]
[337720853,1725987104461,-500.0,0.00020822,2]
[337720854,1725987104470,-2582.53,0.00020822,2]
[337720855,1725987104480,-677.86,0.00020822,2]
[337720856,1725987104490,-500.0,0.00020822,2]
[337720857,1725987104502,-771.86,0.00020822,2]
[337720858,1725987104513,-500.0,0.00020822,2]
[337720859,1725987104524,-1718.58,0.00020822,2]
[337720860,1725987104533,-1132.77,0.00020822,2]
[337720861,1725987104544,-2709.96,0.00020822,2]
[337720862,1725987104555,-652.93,0.00020822,2]
[337720863,1725987104565,-5158.88,0.00020822,2]
[337720864,1725987104575,-500.0,0.00020822,2]
[337720865,1725987104584,-1065.08,0.00020823,2]
[337720866,1725987104594,-660.04,0.00020823,2]
[337720867,1725987104603,-500.0,0.00020823,2]
[337720868,1725987104612,-1568.6,0.00020823,2]
[337720869,1725987104621,-792.17,0.00020823,2]
[337720870,1725987104631,-500.0,0.00020823,2]
[337720871,1725987104640,-904.46,0.00020823,2]
[337720872,1725987104649,-625.22,0.00020823,2]
[337720873,1725987104659,-536.45,0.00020823,2]
[337720874,1725987104669,-500.0,0.00020823,2]
[337720875,1725987104678,-502.6,0.00020823,2]
[337720876,1725987104687,-1049.86,0.00020823,2]
[337720877,1725987104696,-1076.1,0.00020823,2]
[337720878,1725987104705,-500.0,0.00020823,2]
[337720879,1725987104715,-500.0,0.00020823,2]
[337720880,1725987104724,-500.0,0.00020823,2]
[337720881,1725987104736,-629.08,0.00020823,2]
[337720882,1725987104747,-712.42,0.00020823,2]
[337720883,1725987104757,-500.0,0.00020823,2]
[337720884,1725987104766,-500.0,0.00020823,2]
[337720885,1725987104776,-500.0,0.00020823,2]
[337720886,1725987104785,-500.0,0.00020823,2]
[337720887,1725987104795,-500.0,0.00020823,2]
[337720888,1725987104804,-852.74,0.00020823,2]
[337720889,1725987104814,-478.83453832,0.00020823,2]
[337720890,1725987104823,-500.0,0.00020823,2]
[337720891,1725987104832,-800.96,0.00020823,2]
[337720892,1725987104841,-649.67,0.00020823,2]
[337720893,1725987104851,-588.79,0.00020823,2]
[337720894,1725987104860,-1531.75,0.00020823,2]
[337720895,1725987104869,-677.0,0.00020823,2]
[337720896,1725987104879,-582.35,0.00020823,2]
[337720897,1725987104889,-1661.25,0.00020823,2]
[337720898,1725987104900,-500.0,0.00020823,2]
[337720899,1725987104909,-902.12,0.00020823,2]
[337720900,1725987104918,-1161.67,0.00020823,2]
[337720901,1725987104931,-1545.8,0.00020823,2]
[337720902,1725987104940,-1031.96,0.00020823,2]
[337720903,1725987104950,-500.0,0.00020823,2]
[337720904,1725987104959,-1005.54,0.00020823,2]
[337720905,1725987104972,-801.25,0.00020823,2]
[337720906,1725987104981,-682.45,0.00020823,2]
[337720907,1725987104990,-1528.95,0.00020823,2]
[337720908,1725987105000,-686.42,0.00020823,2]
[337720909,1725987105010,-3196.6,0.00020823,2]
[337720910,1725987105019,-1720.38,0.00020823,2]
[337720911,1725987105028,-580.2,0.00020823,2]
[337720912,1725987105037,-2053.93,0.00020823,2]
[337720913,1725987105046,-1653.22,0.00020823,2]
[337720914,1725987105055,-2581.4,0.00020823,2]
[337720915,1725987105064,-500.0,0.00020823,2]
[337720916,1725987105074,-500.0,0.00020823,2]
[337720917,1725987105083,-582.87,0.00020823,2]
[337720918,1725987105093,-500.0,0.00020823,2]
[337720919,1725987105109,-665.52,0.00020823,2]
[337720920,1725987105119,-500.0,0.00020823,2]
[337720921,1725987105129,-624.21,0.00020823,2]
[337720922,1725987105138,-796.18,0.00020823,2]
[337720923,1725987105147,-500.0,0.00020823,2]
[337720924,1725987105156,-1602.56,0.00020823,2]
[337720925,1725987105166,-1153.39,0.00020823,2]
[337720926,1725987105175,-979.44,0.00020823,2]
[337720927,1725987105184,-629.96,0.00020823,2]
[337720928,1725987105194,-931.29,0.00020823,2]
[337720929,1725987105203,-500.0,0.00020823,2]
[337720930,1725987105212,-1387.23,0.00020823,2]
[337720931,1725987105221,-516.8,0.00020823,2]
[337720932,1725987105231,-1249.15,0.00020823,2]
[337720933,1725987105240,-500.0,0.00020823,2]
[337720934,1725987105249,-507.63,0.00020823,2]
[337720935,1725987105258,-3108.36,0.00020823,2]
[337720936,1725987105268,-1950.86,0.00020823,2]
[337720937,1725987105277,-513.58,0.00020823,2]
[337720938,1725987105286,-500.0,0.00020823,2]
[337720939,1725987105297,-1468.78,0.00020823,2]
[337720940,1725987105307,-4251.41,0.00020823,2]
[337720941,1725987105317,-500.0,0.00020823,2]
[337720942,1725987105327,-500.0,0.00020823,2]
[337720943,1725987105336,-514.60682322,0.00020823,2]
[337720944,1725987105352,-500.0,0.00020823,2]
[337720945,1725987105362,-818.77,0.00020823,2]
[337720946,1725987105372,-500.0,0.00020823,2]
[337720947,1725987105381,-500.0,0.00020823,2]
[337720948,1725987105392,-547.21,0.00020823,2]
[337720949,1725987105402,-889.36,0.00020823,2]
[337720950,1725987105412,-639.23032534,0.00020823,2]
[337720951,1725987105422,-948.67,0.00020823,2]
[337720952,1725987105433,-653.85,0.00020823,2]
[337720953,1725987105443,-527.0,0.00020823,2]
[337720954,1725987105453,-1596.56,0.00020823,2]
[337720955,1725987105463,-626.02,0.00020823,2]
[337720956,1725987105474,-500.0,0.00020823,2]
[337720957,1725987105484,-500.0,0.00020823,2]
[337720958,1725987105493,-553.2,0.00020823,2]
[337720959,1725987105502,-848.19,0.00020823,2]
[337720960,1725987105512,-204.41119745,0.00020823,2]
[337720961,1725987105522,-882.16,0.00020823,2]
[337720962,1725987105531,-578.17,0.00020823,2]
[337720963,1725987105540,-841.44,0.00020823,2]
[337720964,1725987105550,-500.0,0.00020823,2]
[337720965,1725987105559,-642.34,0.00020823,2]
[337720966,1725987105569,-791.11,0.00020823,2]
[337720967,1725987105579,-1895.41,0.00020823,2]
[337720968,1725987105589,-511.78248502,0.00020823,2]
[337720969,1725987105600,-980.57,0.00020823,2]
[337720970,1725987105609,-500.0,0.00020823,2]
[337720971,1725987105619,-2400.44,0.00020823,2]
[337720972,1725987105628,-500.0,0.00020823,2]
[337720973,1725987105638,-1124.28,0.00020823,2]
[337720974,1725987105647,-672.56,0.00020823,2]
[337720975,1725987105657,-571.17,0.00020823,2]
[337720976,1725987105667,-808.61,0.00020823,2]
[337720977,1725987105676,-500.0,0.00020823,2]
[337720978,1725987105685,-500.0,0.00020823,2]
[337720979,1725987105695,-1199.35,0.00020823,2]
[337720980,1725987105705,-1033.55,0.00020823,2]
[337720981,1725987105714,-1786.34,0.00020823,2]
[337720982,1725987105723,-500.0,0.00020823,2]
[337720983,1725987105733,-857.51,0.00020823,2]
[337720984,1725987105742,-500.0,0.00020823,2]
[337720985,1725987105752,-500.0,0.00020823,2]
[337720986,1725987105762,-500.0,0.00020823,2]
[337720987,1725987105771,-500.0,0.00020823,2]
[337720988,1725987105781,-742.91,0.00020823,2]
[337720989,1725987105790,-606.58,0.00020823,2]
[337720990,1725987105799,-500.0,0.00020823,2]
[337720991,1725987105809,-679.35,0.00020823,2]
[337720992,1725987105818,-678.54,0.00020826,2]
[337720993,1725987105827,-2561.503024,0.00020836,2]
[337720994,1725987105836,-2636.684049,0.00020836,2]
[337720995,1725987105846,-600.0,0.00020997,2]
[337720996,1725987105855,-497.0,0.00021,2]
[337720997,1725987105865,-10000.0,0.00021,2]
[337720998,1725987105874,-3000.0,0.00021,2]
[337720999,1725987105885,-3000.0,0.0002101,2]
[337721000,1725987105894,-3000.0,0.0002102,2]
[337721001,1725987105904,-3000.0,0.0002103,2]
[337721002,1725987105913,-3000.0,0.0002104,2]
[337721003,1725987105923,-3000.0,0.0002105,2]
[337721004,1725987105934,-3000.0,0.0002106,2]
[337721005,1725987105944,-3000.0,0.0002107,2]
[337721006,1725987105953,-3000.0,0.0002108,2]
[337721007,1725987105964,-2561.503024,0.00021087,2]
[337721008,1725987105973,-181.452845,0.00021087,2]
[337721009,1725987105982,-181.452844,0.00021087,2]
[337721010,1725987105991,-203.545633,0.00021087,2]
[337721011,1725987106000,-2636.684049,0.00021087,2]
[337721012,1725987106009,-181.452844,0.00021087,2]
[337721013,1725987106019,-203.545633,0.00021087,2]
[337721014,1725987106030,-3000.0,0.0002109,2]
[337721015,1725987106040,-1047.18,0.00021093,2]
[337721016,1725987106049,-553.54,0.00021095,2]
[337721017,1725987106059,-2363.4,0.00021095,2]
[337721018,1725987106068,-977.86,0.00021095,2]
[337721019,1725987106078,-1813.25,0.00021095,2]
[337721020,1725987106087,-1983.67,0.00021095,2]
[337721021,1725987106098,-585.68,0.00021095,2]
[337721022,1725987106109,-2056.03,0.00021095,2]
[337721023,1725987106118,-1041.82,0.00021095,2]
[337721024,1725987106127,-200.0,0.00021095,2]
[337721025,1725987106137,-890.94,0.00021095,2]
[337721026,1725987106146,-500.0,0.00021095,2]
[337721027,1725987106159,-2908.31,0.00021095,2]
[337721028,1725987106168,-570.37,0.00021095,2]
[337721029,1725987106177,-43984.4,0.00021095,2]
[337721030,1725987106188,-500.0,0.00021095,2]
[337721031,1725987106198,-2135.99,0.00021095,2]
[337721032,1725987106209,-3517.34,0.00021095,2]
[337721033,1725987106219,-539.11,0.00021095,2]
[337721034,1725987106233,-2575.2,0.00021095,2]
[337721035,1725987106244,-7865.92,0.00021095,2]
[337721036,1725987106254,-500.0,0.00021095,2]
[337721037,1725987106264,-3508.18,0.00021095,2]
[337721038,1725987106274,-1299.19,0.00021095,2]
[337721039,1725987106286,-1213.25,0.00021095,2]
[337721040,1725987106295,-897.95,0.00021095,2]
[337721041,1725987106304,-2680.58,0.00021095,2]
[337721042,1725987106317,-867.86,0.00021095,2]
[337721043,1725987106329,-539.4,0.00021095,2]
[337721044,1725987106341,-3969.43,0.00021095,2]
[337721045,1725987106353,-1187.95,0.00021095,2]
[337721046,1725987106363,-8904.62,0.00021095,2]
[337721047,1725987106372,-1301.09,0.00021095,2]
[337721048,1725987106383,-1116.76,0.00021095,2]
[337721049,1725987106394,-2535.01,0.00021095,2]
[337721050,1725987106405,-500.0,0.00021095,2]
[337721051,1725987106415,-1737.23,0.00021095,2]
[337721052,1725987106424,-1452.81,0.00021095,2]
[337721053,1725987106435,-500.0,0.00021095,2]
[337721054,1725987106446,-500.0,0.00021095,2]
[337721055,1725987106456,-3779.0,0.00021095,2]
[337721056,1725987106466,-565.66,0.00021096,2]
[337721057,1725987106477,-920.25,0.00021096,2]
[337721058,1725987106486,-500.0,0.00021096,2]
[337721059,1725987106495,-500.0,0.00021096,2]
[337721060,1725987106504,-1099.81,0.00021096,2]
[337721061,1725987106514,-1604.71,0.00021096,2]
[337721062,1725987106523,-2210.6,0.00021096,2]
[337721063,1725987106533,-1189.48,0.00021096,2]
[337721064,1725987106542,-663.24,0.00021096,2]
[337721065,1725987106553,-1038.53,0.00021096,2]
[337721066,1725987106562,-1169.08,0.00021096,2]
[337721067,1725987106572,-505.5,0.00021096,2]
[337721068,1725987106582,-1822.14,0.00021096,2]
[337721069,1725987106591,-720.07,0.00021096,2]
[337721070,1725987106602,-2913.8,0.00021096,2]
[337721071,1725987106611,-1955.94,0.00021096,2]
[337721072,1725987106621,-742.92,0.00021096,2]
[337721073,1725987106630,-609.62,0.00021096,2]
[337721074,1725987106641,-1713.89,0.00021096,2]
[337721075,1725987106651,-971.86,0.00021096,2]
[337721076,1725987106661,-2284.58,0.00021096,2]
[337721077,1725987106671,-1021.87,0.00021096,2]
[337721078,1725987106680,-792.09,0.00021096,2]
[337721079,1725987106690,-1816.79,0.00021096,2]
[337721080,1725987106700,-223.71,0.00021096,2]
[337721081,1725987106710,-720.94,0.00021096,2]
[337721082,1725987106719,-753.23,0.00021096,2]
[337721083,1725987106728,-1933.6,0.00021096,2]
[337721084,1725987106739,-1008.22,0.00021096,2]
[337721085,1725987106748,-1583.17,0.00021096,2]
[337721086,1725987106758,-500.0,0.00021096,2]
[337721087,1725987106767,-9481.22,0.00021096,2]
[337721088,1725987106776,-1938.09,0.00021096,2]
[337721089,1725987106786,-1806.64,0.00021096,2]
[337721090,1725987106795,-589.44,0.00021096,2]
[337721091,1725987106804,-1240.8,0.00021096,2]
[337721092,1725987106814,-946.63,0.00021096,2]
[337721093,1725987106823,-38864.62,0.00021096,2]
[337721094,1725987106833,-2013.95,0.00021096,2]
[337721095,1725987106842,-2044.37,0.00021096,2]
[337721096,1725987107000,-53987.64,0.00021096,2]
[337721097,1725987107010,-500.0,0.00021096,2]
[337721098,1725987107019,-4713.36,0.00021096,2]
[337721099,1725987107027,-535.49,0.00021096,2]
[337721100,1725987107036,-500.0,0.00021096,2]
[337721101,1725987107046,-965.38,0.00021096,2]
[337721102,1725987107055,-806.04,0.00021096,2]
[337721103,1725987107064,-500.0,0.00021096,2]
[337721104,1725987107073,-2582.53,0.00021096,2]
[337721105,1725987107082,-677.86,0.00021096,2]
[337721106,1725987107092,-500.0,0.00021096,2]
[337721107,1725987107102,-771.86,0.00021096,2]
[337721108,1725987107111,-500.0,0.00021096,2]
[337721109,1725987107121,-1718.58,0.00021096,2]
[337721110,1725987107130,-1132.77,0.00021096,2]
[337721111,1725987107140,-2709.96,0.00021096,2]
[337721112,1725987107149,-652.93,0.00021096,2]
[337721113,1725987107159,-5158.88,0.00021096,2]
[337721114,1725987107168,-500.0,0.00021096,2]
[337721115,1725987107177,-1065.08,0.00021097,2]
[337721116,1725987107187,-660.04,0.00021097,2]
[337721117,1725987107196,-464.62811946,0.00021097,2]
[337721118,1725987107205,-1568.6,0.00021097,2]
[337721119,1725987107214,-792.17,0.00021097,2]
[337721120,1725987107223,-500.0,0.00021097,2]
[337721121,1725987107233,-904.46,0.00021097,2]
[337721122,1725987107243,-625.22,0.00021097,2]
[337721123,1725987107252,-536.45,0.00021097,2]
[337721124,1725987107262,-500.0,0.00021097,2]
[337721125,1725987107272,-502.6,0.00021097,2]
[337721126,1725987107282,-1049.86,0.00021097,2]
[337721127,1725987107291,-1076.1,0.00021097,2]
[337721128,1725987107301,-500.0,0.00021097,2]
[337721129,1725987107310,-500.0,0.00021097,2]
[337721130,1725987107320,-500.0,0.00021097,2]
[337721131,1725987107330,-629.08,0.00021097,2]
[337721132,1725987107340,-712.42,0.00021097,2]
[337721133,1725987107351,-500.0,0.00021097,2]
[337721134,1725987107362,-500.0,0.00021097,2]
[337721135,1725987107372,-552.82747032,0.00021097,2]
[337721136,1725987107381,-500.0,0.00021097,2]
[337721137,1725987107392,-500.0,0.00021097,2]
[337721138,1725987107401,-852.74,0.00021097,2]
[337721139,1725987107412,-529.52419848,0.00021097,2]
[337721140,1725987107421,-800.96,0.00021097,2]
[337721141,1725987107430,-649.67,0.00021097,2]
[337721142,1725987107440,-588.79,0.00021097,2]
[337721143,1725987107450,-1531.75,0.00021097,2]
[337721144,1725987107459,-677.0,0.00021097,2]
[337721145,1725987107468,-582.35,0.00021097,2]
[337721146,1725987107478,-1661.25,0.00021097,2]
[337721147,1725987107488,-500.0,0.00021097,2]
[337721148,1725987107498,-902.12,0.00021097,2]
[337721149,1725987107507,-1161.67,0.00021097,2]
[337721150,1725987107516,-1545.8,0.00021097,2]
[337721151,1725987107525,-1031.96,0.00021097,2]
[337721152,1725987107535,-415.38666637,0.00021097,2]
[337721153,1725987107544,-1005.54,0.00021097,2]
[337721154,1725987107554,-801.25,0.00021097,2]
[337721155,1725987107563,-682.45,0.00021097,2]
[337721156,1725987107573,-1528.95,0.00021097,2]
[337721157,1725987107582,-686.42,0.00021097,2]
[337721158,1725987107591,-3196.6,0.00021097,2]
[337721159,1725987107603,-1720.38,0.00021097,2]
[337721160,1725987107612,-580.2,0.00021097,2]
[337721161,1725987107622,-2053.93,0.00021097,2]
[337721162,1725987107631,-1653.22,0.00021097,2]
[337721163,1725987107640,-2581.4,0.00021097,2]
[337721164,1725987107649,-500.0,0.00021097,2]
[337721165,1725987107660,-500.0,0.00021097,2]
[337721166,1725987107670,-582.87,0.00021097,2]
[337721167,1725987107679,-500.0,0.00021097,2]
[337721168,1725987107689,-665.52,0.00021097,2]
[337721169,1725987107699,-500.0,0.00021097,2]
[337721170,1725987107708,-624.21,0.00021097,2]
[337721171,1725987107717,-796.18,0.00021097,2]
[337721172,1725987107726,-500.0,0.00021097,2]
[337721173,1725987107736,-1602.56,0.00021097,2]
[337721174,1725987107746,-1153.39,0.00021097,2]
[337721175,1725987107755,-979.44,0.00021097,2]
[337721176,1725987107766,-629.96,0.00021097,2]
[337721177,1725987107775,-931.29,0.00021097,2]
[337721178,1725987107784,-500.0,0.00021097,2]
[337721179,1725987107794,-1387.23,0.00021097,2]
[337721180,1725987107804,-516.8,0.00021097,2]
[337721181,1725987107813,-1249.15,0.00021097,2]
[337721182,1725987107823,-500.0,0.00021097,2]
[337721183,1725987107831,-507.63,0.00021097,2]
[337721184,1725987107841,-3108.36,0.00021097,2]
[337721185,1725987107852,-1950.86,0.00021097,2]
[337721186,1725987107862,-513.58,0.00021097,2]
[337721187,1725987107871,-500.0,0.00021097,2]
[337721188,1725987107884,-1468.78,0.00021097,2]
[337721189,1725987107894,-4251.41,0.00021097,2]
[337721190,1725987107904,-153.93275344,0.00021097,2]
[337721191,1725987107913,-500.0,0.00021097,2]
[337721192,1725987107923,-464.79003075,0.00021097,2]
[337721193,1725987107932,-818.77,0.00021097,2]
[337721194,1725987107942,-500.0,0.00021097,2]
[337721195,1725987107951,-500.0,0.00021097,2]
[337721196,1725987107963,-547.21,0.00021097,2]
[337721197,1725987107973,-889.36,0.00021097,2]
[337721198,1725987107983,-948.67,0.00021097,2]
[337721199,1725987107992,-653.85,0.00021097,2]
[337721200,1725987108002,-527.0,0.00021097,2]
[337721201,1725987108011,-1596.56,0.00021097,2]
[337721202,1725987108021,-626.02,0.00021097,2]
[337721203,1725987108030,-500.0,0.00021097,2]
[337721204,1725987108040,-500.0,0.00021097,2]
[337721205,1725987108050,-553.2,0.00021097,2]
[337721206,1725987108059,-848.19,0.00021097,2]
[337721207,1725987108069,-882.16,0.00021097,2]
[337721208,1725987108079,-578.17,0.00021097,2]
[337721209,1725987108088,-841.44,0.00021097,2]
[337721210,1725987108097,-500.0,0.00021097,2]
[337721211,1725987108107,-642.34,0.00021097,2]
[337721212,1725987108116,-791.11,0.00021097,2]
[337721213,1725987108126,-1895.41,0.00021097,2]
[337721214,1725987108136,-980.57,0.00021097,2]
[337721215,1725987108145,-500.0,0.00021097,2]
[337721216,1725987108155,-2400.44,0.00021097,2]
[337721217,1725987108164,-500.0,0.00021097,2]
[337721218,1725987108174,-1124.28,0.00021097,2]
[337721219,1725987108184,-672.56,0.00021097,2]
[337721220,1725987108195,-571.17,0.00021097,2]
[337721221,1725987108205,-808.61,0.00021097,2]
[337721222,1725987108215,-500.0,0.00021097,2]
[337721223,1725987108225,-361.56283747,0.00021097,2]
[337721224,1725987108235,-1199.35,0.00021097,2]
[337721225,1725987108244,-1033.55,0.00021097,2]
[337721226,1725987108254,-1786.34,0.00021097,2]
[337721227,1725987108263,-500.0,0.00021097,2]
[337721228,1725987108273,-857.51,0.00021097,2]
[337721229,1725987108283,-500.0,0.00021097,2]
[337721230,1725987108292,-500.0,0.00021097,2]
[337721231,1725987108304,-500.0,0.00021097,2]
[337721232,1725987108315,-500.0,0.00021097,2]
[337721233,1725987108325,-742.91,0.00021097,2]
[337721234,1725987108335,-606.58,0.00021097,2]
[337721235,1725987108348,-590.49896698,0.00021097,2]
[337721236,1725987108357,-679.35,0.00021097,2]
[337721237,1725987108366,-10000.0,0.000211,2]
[337721238,1725987108375,-678.54,0.000211,2]
[337721239,1725987108385,-3000.0,0.000211,2]
[337721240,1725987108395,-3000.0,0.0002111,2]
[337721242,1725987108404,-3000.0,0.0002112,2]
[337721243,1725987108414,-1500.0,0.00021125,2]
[337721244,1725987108424,-3000.0,0.0002113,2]
[337721245,1725987108433,-3000.0,0.0002114,2]
[337721246,1725987108442,-3000.0,0.0002115,2]
[337721247,1725987108452,-3000.0,0.0002116,2]
[337721248,1725987108461,-3000.0,0.0002117,2]
[337721249,1725987108470,-2206.43598465,0.00021179,2]
[337721250,1725987108479,-3000.0,0.0002118,2]
[337721251,1725987108489,-3000.0,0.0002119,2]
[337721252,1725987108498,-505.74917705,0.000212,2]
[337721253,1725987108507,-10000.0,0.000212,2]
[337721254,1725987108517,-500.0,0.000212,2]
[337721255,1725987108527,-3000.0,0.000212,2]
[337721256,1725987108537,-600.0,0.00021209,2]
[337721257,1725987108547,-3000.0,0.0002121,2]
[337721258,1725987108558,-3000.0,0.0002122,2]
[337721259,1725987108567,-3000.0,0.0002123,2]
[337721260,1725987108576,-3000.0,0.0002124,2]
[337721261,1725987108586,-3000.0,0.0002125,2]
[337721262,1725987108595,-3000.0,0.0002126,2]
[337721263,1725987108616,-3000.0,0.0002127,2]
[337721264,1725987108625,-3000.0,0.0002128,2]
[337721265,1725987108634,-3000.0,0.0002129,2]
[337721266,1725987108643,-10000.0,0.000213,2]
[337721267,1725987108652,-3000.0,0.000213,2]
[337721268,1725987108661,-3000.0,0.0002131,2]
[337721269,1725987108670,-3000.0,0.0002132,2]
[337721270,1725987108680,-3000.0,0.0002133,2]
[337721271,1725987108689,-3000.0,0.0002134,2]
[337721273,1725987108699,-3000.0,0.0002135,2]
[337721274,1725987108709,-3000.0,0.0002136,2]
[337721275,1725987108719,-1047.18,0.00021367,2]
[337721276,1725987108729,-553.54,0.00021369,2]
[337721277,1725987108739,-2363.4,0.00021369,2]
[337721278,1725987108749,-977.86,0.00021369,2]
[337721279,1725987108759,-1813.25,0.00021369,2]
[337721280,1725987108768,-1983.67,0.00021369,2]
[337721281,1725987108779,-585.68,0.00021369,2]
[337721282,1725987108788,-2056.03,0.00021369,2]
[337721283,1725987108798,-1041.82,0.00021369,2]
[337721284,1725987108808,-200.0,0.00021369,2]
[337721285,1725987108818,-890.94,0.00021369,2]
[337721286,1725987108828,-500.0,0.00021369,2]
[337721287,1725987108837,-2908.31,0.00021369,2]
[337721288,1725987108851,-570.37,0.00021369,2]
[337721289,1725987108860,-43984.4,0.00021369,2]
[337721290,1725987108870,-500.0,0.00021369,2]
[337721291,1725987108880,-2135.99,0.00021369,2]
[337721292,1725987108889,-3517.34,0.00021369,2]
[337721293,1725987108902,-539.11,0.00021369,2]
[337721294,1725987108911,-2575.2,0.00021369,2]
[337721295,1725987108921,-7865.92,0.00021369,2]
[337721296,1725987108932,-500.0,0.00021369,2]
[337721297,1725987108942,-1299.19,0.00021369,2]
[337721298,1725987108952,-3508.18,0.00021369,2]
[337721299,1725987108961,-1213.25,0.00021369,2]
[337721300,1725987108971,-897.95,0.00021369,2]
[337721301,1725987108982,-2680.58,0.00021369,2]
[337721302,1725987108991,-867.86,0.00021369,2]
[337721303,1725987109001,-539.4,0.00021369,2]
[337721304,1725987109011,-3969.43,0.00021369,2]
[337721305,1725987109021,-1187.95,0.00021369,2]
[337721306,1725987109031,-8904.62,0.00021369,2]
[337721307,1725987109041,-1301.09,0.00021369,2]
[337721308,1725987109050,-1116.76,0.00021369,2]
[337721309,1725987109060,-2535.01,0.00021369,2]
[337721310,1725987109070,-500.0,0.00021369,2]
[337721311,1725987109080,-1737.23,0.00021369,2]
[337721312,1725987109089,-1452.81,0.00021369,2]
[337721313,1725987109101,-430.24295739,0.00021369,2]
[337721314,1725987109111,-500.0,0.00021369,2]
[337721315,1725987109120,-3779.0,0.00021369,2]
[337721316,1725987109130,-565.66,0.0002137,2]
[337721317,1725987109140,-920.25,0.0002137,2]
[337721318,1725987109149,-500.0,0.0002137,2]
[337721319,1725987109158,-500.0,0.0002137,2]
[337721320,1725987109167,-1099.81,0.0002137,2]
[337721321,1725987109177,-3000.0,0.0002137,2]
[337721322,1725987109186,-1604.71,0.0002137,2]
[337721323,1725987109195,-2210.6,0.0002137,2]
[337721324,1725987109205,-1189.48,0.0002137,2]
[337721325,1725987109214,-663.24,0.0002137,2]
[337721326,1725987109224,-1038.53,0.0002137,2]
[337721327,1725987109233,-1169.08,0.0002137,2]
[337721328,1725987109243,-505.5,0.0002137,2]
[337721329,1725987109252,-1822.14,0.0002137,2]
[337721330,1725987109261,-720.07,0.0002137,2]
[337721331,1725987109271,-2913.8,0.0002137,2]
[337721332,1725987109281,-1955.94,0.0002137,2]
[337721333,1725987109290,-742.92,0.0002137,2]
[337721334,1725987109299,-609.62,0.0002137,2]
[337721335,1725987109310,-1713.89,0.0002137,2]
[337721336,1725987109320,-971.86,0.0002137,2]
[337721337,1725987109330,-2284.58,0.0002137,2]
[337721338,1725987109340,-1021.87,0.0002137,2]
[337721339,1725987109351,-792.09,0.0002137,2]
[337721340,1725987109361,-1816.79,0.0002137,2]
[337721341,1725987109371,-720.94,0.0002137,2]
[337721342,1725987109380,-753.23,0.0002137,2]
[337721343,1725987109389,-1933.6,0.0002137,2]
[337721344,1725987109399,-1008.22,0.0002137,2]